Cogmind - Beta 13 @@@ ROGUE MODE // 2024.04.29 @ 13:16:01 Player: BionicBot Result: Destroyed by G-34 Mercenary with Small Laser Performance ------------- Evolutions (0) 0 Regions Visited (1) 200 Robots Destroyed (16) 80 Value Destroyed (331) 331 Prototype IDs (0) 0 Alien Tech Used (0) 0 Bonus (0) 0 TOTAL SCORE: 611 Bonus ------- None Cogmind --------- Core Integrity 0/250 Matter 300/300 Energy 100/100 System Corruption 0% Temperature Cool (6) Movement Walking (120) Location -10/Materials Parts ------- > --- POWER (1) -------- (None) > --- PROPULSION (2) --- Aluminum Leg > --- UTILITY (2) ------ (None) > --- WEAPON (2) ------- (None) > --- INVENTORY (5) ---- (None) Peak State ------------ > --- POWER ------------ Ion Engine > --- PROPULSION ------- Compact Wheel Compact Wheel > --- UTILITY ---------- Improved Terrain Scanner Seismic Detector > --- WEAPON ----------- Small Laser Light Assault Rifle > --- INVENTORY -------- (None) [Rating: 9] Favorites ----------- Power Ion Engine Engine Ion Engine Propulsion Compact Wheel Leg Aluminum Leg Wheel Compact Wheel Utility Improved Terrain Scanner Device Improved Terrain Scanner Weapon Small Laser Energy Gun Small Laser Ballistic Gun Light Assault Rifle Build | -11 -10 ------- Run | Yrd Mat Slots Evolved . | . . Power . | . . Propulsion . | . . Utility . | . . Weapon . | . . Parts Attached 10 | 7 3 Power 1 | 1 . Engine 1 | 1 . Core . | . . Reactor . | . . Propulsion 5 | 2 3 Treads . | . . Leg 3 | . 3 Wheel 2 | 2 . Hover . | . . Flight . | . . Utility 2 | 2 . Device 2 | 2 . Storage . | . . Processor . | . . Hackware . | . . Protection . | . . Artifact . | . . Weapon 2 | 2 . Energy Gun 1 | 1 . Energy Cannon . | . . Ballistic Gun 1 | 1 . Ballistic Cannon . | . . Launcher . | . . Special Weapon . | . . Impact Weapon . | . . Slashing Weapon . | . . Piercing Weapon . | . . Special Melee Weapon . | . . Unidentified Prototypes . | . . Parts Lost 7 | . 7 Power 1 | . 1 Propulsion 2 | . 2 Utility 2 | . 2 Weapon 2 | . 2 Highest Loss Streak 6 | . 6 To Critical Strikes . | . . Average Slot Usage (%) 82 | . 82 Engine 10 | . 10 Leg 14 | . 14 Wheel 10 | . 10 Device 22 | . 22 Energy Gun 11 | . 11 Ballistic Gun 11 | . 11 Naked Turns . | . . Heaviest Build 9 | 9 9 Greatest Support 32 | 32 32 Greatest Overweight (x) . | . . Average Overweight (x) . | . . Largest Inventory Capacity 5 | 5 5 Average Capacity 5 | 5 5 Most Carried 2 | 2 2 Average Carried . | . . Final Capacity 5 | 5 5 Final Carried . | . . Class Distribution -------------------- 78% | Mutant 21% | Scavenger-Mutant Dominant Class ---------------- Mutant | -10/Materials Resources | -11 -10 ----------- Run | Yrd Mat Matter Collected 311 | 260 51 Remotely . | . . Salvage Created 479 | 142 337 Parts 39 | 11 28 Haulers Intercepted . | . . Recyclers Shooed . | . . Parts Field Recycled . | . . Retrieved Matter . | . . Parts Self-Destructed . | . . Prevented . | . . Kills | -11 -10 ------- Run | Yrd Mat Combat Hostiles Destroyed 10 | . 10 Melee 1 | . 1 Guns 9 | . 9 Classes Destroyed 5 | 2 3 Tunneler 4 | 4 . Recycler 1 | 1 . Watcher 1 | . 1 Swarmer 3 | . 3 Grunt 7 | . 7 Best Kill Streak 5 | 4 5 Combat Bots Only 5 | . 5 Max Kills in Single Turn 1 | 1 1 Gunslinging . | . . Exploded . | . . Melee 1 | . 1 Uniques/NPCs Destroyed . | . . Combat | -11 -10 -------- Run | Yrd Mat Hostile Shots Fired 100 | . 100 Missed 29 | . 29 Damage Taken 763 | . 763 Core 251 | . 251 Absorbed by Shields . | . . Core Remaining (%) 100 | 100 . Volleys Fired 42 | 10 32 Largest 2 | 2 2 Hottest 60 | 60 60 Shots Fired 83 | 20 63 Gun 83 | 20 63 Cannon . | . . Launcher . | . . Special . | . . Kinetic 41 | 10 31 Thermal 42 | 10 32 Explosive . | . . Electromagnetic . | . . Robot Hit Streak 7 | 6 7 Robot Miss Streak 2 | 2 2 Penetration Max . | . . Secondary Targets 3 | . 3 Max Gunslinging Chain 1 | . 1 Shots Hit Robots 52 | 12 40 Core Hits 36 | 6 30 Critical Kills 1 | 1 . Critical Parts Destroyed . | . . Critical Strikes 1 | 1 . Destroy 1 | 1 . Melee Attacks . | . . Impact . | . . Slashing . | . . Piercing . | . . Sneak Attacks . | . . Combat Hostiles . | . . Follow-up Attacks . | . . Damage Inflicted 551 | 130 421 Guns 532 | 130 402 Cannons . | . . Explosions . | . . Melee . | . . Ramming 19 | . 19 Kinetic 191 | 31 160 Thermal 341 | 99 242 Explosive . | . . Electromagnetic . | . . Impact . | . . Slashing . | . . Piercing . | . . Highest Corruption . | . . Average Corruption . | . . Corruption Purged . | . . Corruption Blocked . | . . Overload Shots . | . . Overflow Damage . | . . Projectiles . | . . Explosions . | . . Melee . | . . Knockbacks . | . . Impact . | . . Kinetic . | . . Secondary . | . . Self-Inflicted Damage . | . . Shots . | . . Rammed . | . . Targets Rammed 23 | . 23 Kicked 23 | . 23 Crushed . | . . Highest Temperature 167 | 40 167 Average Temperature 48 | 17 55 Received Heat Transfer 312 | . 312 Siege Activations . | . . Robots Corrupted . | . . Combat Hostiles . | . . Parts Fried . | . . Impact Corruptions . | . . Robots Melted . | . . Combat Hostiles . | . . Parts Melted . | . . Heat Transferred 775 | 225 550 Parts Sabotaged . | . . Parts Stolen . | . . Parts Stripped . | . . Power Chain Reactions . | . . Alert | -11 -10 ------- Run | Yrd Mat Peak Influence 261 | 25 261 Initial 16 | . 16 Average 106 | 11 145 Maximum Alert Level 1 | . 1 Low Security (%) 81 | 100 74 Level 1 18 | . 25 Level 2 . | . . Level 3 . | . . Level 4 . | . . Level 5 . | . . High Security . | . . Max Security . | . . Squads Dispatched 1 | . 1 Investigation . | . . Extermination . | . . Reinforcement 1 | . 1 Assault . | . . Garrison . | . . Intercept . | . . Searches Triggered . | . . Construction Impeded . | . . Haulers Reinforced . | . . Active Scanning Responses . | . . Cargo Convoy Interrupts . | . . Stealth | -11 -10 --------- Run | Yrd Mat Distress Signals 2 | . 2 Communications Jammed . | . . Distress Signals . | . . Times Spotted 18 | . 18 Peak Tracking Total 5 | . 5 Tactical Retreats 1 | . 1 Traps | -11 -10 ------- Run | Yrd Mat Traps Triggered . | . . Indirectly . | . . Trap Hack Attempts . | . . Triggered . | . . Disarmed . | . . Reprogrammed . | . . Reused . | . . Traps Extracted . | . . Installed . | . . Triggered . | . . Machines | -11 -10 ---------- Run | Yrd Mat Machines Disabled . | . . Max in Single Turn . | . . Machines Repaired . | . . Machines Dismantled . | . . Machines Sabotaged . | . . Overloaded Fab Kills . | . . Hacking | -11 -10 --------- Run | Yrd Mat Machines Accessed 3 | . 3 Terminals 2 | . 2 Fabricators . | . . Repair Stations . | . . Recycling Units 1 | . 1 Scanalyzers . | . . Garrison Access . | . . Total Hacks 5 | . 5 Successful 3 | . 3 Failed 2 | . 2 Catastrophic . | . . Database Lockouts . | . . Manual . | . . Terminals 4 | . 4 Fabricators . | . . Repair Stations . | . . Recycling Units 1 | . 1 Scanalyzers . | . . Garrison Access . | . . Terminal Hacks 2 | . 2 Locate Traps 1 | . 1 Zone Layout 1 | . 1 Fabricator Hacks . | . . Repair Station Hacks . | . . Recycling Unit Hacks 1 | . 1 Report Inventory 1 | . 1 Scanalyzer . | . . Garrison Access Hacks . | . . Unauthorized Hacks . | . . Terminals . | . . Fabricators . | . . Repair Stations . | . . Recycling Units . | . . Scanalyzers . | . . Garrison Access . | . . Data Cores Recovered . | . . Used . | . . Hacking Detections 2 | . 2 Full Trace Events . | . . Feedback Events . | . . Feedback Blocked . | . . Robot Schematics Acquired . | . . Robots Built . | . . Authchips . | . . Time . | . . Total Robot Build Rating . | . . Part Schematics Acquired . | . . Parts Built . | . . Authchips . | . . Time . | . . Total Part Build Rating . | . . Parts Repaired . | . . Time . | . . Parts Recycled . | . . Recycled Matter . | . . Retrieved Matter . | . . Retrieved Components . | . . Parts Scanalyzed . | . . Part Schematics Acquired . | . . Parts Damaged . | . . Bothacking | -11 -10 ------------ Run | Yrd Mat Used RIF Installer . | . . Robots Hacked . | . . Non-combat . | . . Combat . | . . Robot Hacks Applied . | . . Relay Couplers Released . | . . Fabnet Peak Effective % . | . . Robots Rewired . | . . Allies Hacked . | . . Hacks Repelled . | . . Allies | -11 -10 -------- Run | Yrd Mat Total Allies . | . . Largest Group . | . . Highest-Rated Group . | . . Highest-Rated Ally . | . . Total Orders . | . . Ally Attacks . | . . Total Damage . | . . Kills . | . . Allies Corrupted . | . . Allies Melted . | . . Intel | -11 -10 ------- Run | Yrd Mat Robot Analysis Total . | . . Derelict Logs Recovered . | . . Drone Launches . | . . Drone Recoveries . | . . Exploration | -11 -10 ------------- Run | Yrd Mat Turns Passed 433 | 127 306 Spaces Moved 248 | 89 159 Core 8 | 8 . Treads . | . . Legs 85 | . 85 Wheels 155 | 81 74 Hover . | . . Flight . | . . Fastest Speed 50 | 50 100 Average Speed 105 | 95 110 Slowest Speed 120 | 100 120 Overloaded Moves . | . . Propulsion Burnouts . | . . Robots Hopped . | . . Cave-ins Triggered . | . . Exploration Rate (%) 18 | 4 32 Regions Visited 1 Branch Regions . Pre-discovered Areas . | . . Known Exits Taken . | . . Unknown Exits Taken 1 | 1 . Scrap Searched . | . . Spaces Dug . | . . Terrain Destroyed . | . . Melee . | . . Projectile . | . . AOE . | . . Terrain Rammed . | . . Walls Destroyed . | . . Machines Disabled . | . . Actions | -11 -10 --------- Run | Yrd Mat Total 339 | 112 227 Wait 5 | . 5 Move 247 | 88 159 Hop . | . . Pick Up 10 | 7 3 Fast Attach . | . . Attach 8 | 7 1 Detach . | . . Swap 2 | . 2 Drop 2 | . 2 Fire 42 | 10 32 Melee . | . . Ram . | . . Kick 23 | . 23 Crush . | . . Escape Stasis . | . . Rewire . | . . Trap . | . . Miscellaneous . | . . Route ------- -11/Scrapyard -10/Materials History --------- Turn | Location | Event 2 | -11/Scrapyard | Met Revision 17 18 | -11/Scrapyard | Discovered new exit (range 16) 128 | -11/Scrapyard | Entered Materials 386 | -10/Materials | Core integrity fell below 50% 411 | -10/Materials | Lost 6 parts (1p2n1u2w) 418 | -10/Materials | Core integrity fell below 20% 434 | -10/Materials | Destroyed by G-34 Mercenary with Small Laser Last Messages --------------- 00374_ Sml. Laser destroyed. 00375_ Acquired 14 matter. 00376_ K-01 Serf collects debris. 00378_ Acquired Aluminum Leg. 00379_ K-01 Serf collects debris. 00380_ Aluminum Leg destroyed. 00381_ Acquired 5 matter. 00383_ K-01 Serf collects debris. 00385_ K-01 Serf cleans the Matter Filter. 00388_ Kicked W-16 Scout out of the way. 00409_ Kicked S-10 Pest. 00413_ Kicked S-10 Pest out of the way. 00414_ Imp. Terrain Scanner destroyed. 00415_ Kicked S-10 Pest. 00419_ S-10 Pest destroyed. 00421_ Kicked G-34 Mercenary. 00430_ Kicked G-34 Mercenary out of the way. 00430_ R-06 Scavenger collects Heat Sink. 00431_ Kicked G-34 Mercenary out of the way. Map ----- +----------------------------------------------------+ | ?????????????????????????????????? | | ?????????????????????????????????? | | ?????????????????????????????????? | | ?????????????????????????????????? | | ?????????????????????????????????? | | ???????? ??????????????????????? | | ??????? ??????????????????????? | | ???????# ??????#???????????????? | | ???????# ??????????????????????? | | ???????# ??????????????????????# | | ???????# ???####?????#?????????# | | ???????# ????###??????#?? ? ???# | | ???????# #???????#?#???????????# | | ???????# #?????????????????????+ | | ???????+ +?????????#?#?????"???# | | ???????# #? ?????????????????" # | | #??????# #?? ???#????#????? ???# | | ???????# #?????????????#???#???# | | ???????# #??????#????########### | | ???????# #????????????# *=%![ # | | ???????# #????????????# """"" # | | ??????## ##???????????#%*""""" # | | ??????# %#??#?#????#?# =""""" + | | ??????# %#????#??#####=*""""" # | | ??????+ g %%######### #%%""""" # | | ??????# @ % w % + """"" # | | #?????# %%######### #=!""""" # | | ?? ???############### #== # | | ???????????? # ########## | | ???????????? # !##### | | ??????????? + *%! | | ?????#?????? # !##### | | ???????????? # ##??# | | ???#???????? """" # ##??# | | ???????????? """" # # #### | | ???????????? """" + #% T | | ????????????######### #*""% ^ | | ????????????"T""" #?# ## ^ "" | | ???????????? ### ## "" | | ?????????? ? + ###### "" | | ????????????" ######????# ^ | | ????????????" #?????????# | | ????????????" #?????????# | | ???????????? #?????????# ^" | | ????????????+#############??# "T | | ???????????? #??### ##?# "" | | ???????????? #????# #??# | | ???????????? #??#?# """#??# | | ???????????? #????# """######### | | ???????????? ###### """# | +----------------------------------------------------+ Best States ------------- Heat Dissipation 25 Energy Generation 10 Energy Capacity 250 Matter Stores 300 Matter Capacity 300 Sight Range 16 Terrain Scan Range 16 Terrain Scan Density 10 Evasion (%) 55 Item Schematics ----------------- None Robot Schematics ------------------ None Fabricated ------------ Nothing Alien Tech Used ----------------- None Achievements -------------- None Challenges ------------ None Game ------ Seed DisruptorShadingPick Manual? 0 Play Time 00:09:36 Cumulative 7.6 hours Start 2024.04.29 @ 13:04:52 End 2024.04.29 @ 13:16:01 Sessions 1 Manual Loads 0 Difficulty Rogue Special Mode None Game No. 7 Rogue 7 Adventurer 0 Explorer 0 Win Type - Total 0 Types 0/0/0/0/0/0/0/0/0 Lore% 3 Gallery% 12 Achievement% 12 Wizard Run 0 Options --------- Layout 1 ASCII 0 Keyboard 0 Movement Mouse Keybinds 0 Fullscreen 2 Font 24/Smallcaps Map View 50x35 Zoom Use 0% Tactical HUD 1 Map Filters NONE Filters NONE Steam 1 RUN: 1e9bbf98-d625-46bb-91ff-55b980687e5d